fUST/lending_fUST_20250626
["ID","MTS","AMOUNT","RATE_DAILY","PERIOD"]
[367852448,1750945859468,-1601.04,0.00018356,2]
[367852449,1750945859477,-541.1,0.00018356,2]
[367852450,1750945859487,-947.87,0.00018356,2]
[367852451,1750945859496,-460.0,0.00018356,2]
[367852452,1750945859505,-506.98,0.00018356,2]
[367852453,1750945859515,-151.0,0.00018356,2]
[367852454,1750945859524,-342.0877479,0.00018356,2]
[367852455,1750945859535,-460.0,0.00018356,2]
[367852456,1750945859545,-460.0,0.00018356,2]
[367852457,1750945859554,-551.12,0.00018356,2]
[367852458,1750945859563,-460.0,0.00018356,2]
[367852459,1750945859573,-460.0,0.00018356,2]
[367852460,1750945859583,-371.71405561,0.00018356,2]
[367852461,1750945859592,-460.0,0.00018356,2]
[367852462,1750945859602,-460.0,0.00018356,2]
[367852463,1750945859611,-2153.56,0.00018356,2]
[367852464,1750945859621,-1103.1,0.00018356,2]
[367852465,1750945859631,-460.0,0.00018356,2]
[367852466,1750945859640,-1004.70859062,0.00018357,2]
[367852467,1750945859649,-500.0,0.00018419,2]
[367852468,1750945859658,-1000.0,0.00018421,2]
[367852469,1750945859668,-895.5265441,0.00018421,2]
[367852470,1750945859678,-500.0,0.00018421,2]
[367852471,1750945859689,-502.25946135,0.00018421,2]
[367852472,1750945859698,-302.07678004,0.00018421,2]
[367852473,1750945859708,-375.78683165,0.00018421,2]
[367852474,1750945859717,-500.0,0.00018421,2]
[367852475,1750945859727,-1000.0,0.00018421,2]
[367852476,1750945859736,-1000.0,0.00018421,2]
[367852477,1750945859862,-1000.0,0.00018421,2]
[367852478,1750945859872,-1001.20861726,0.00018421,2]
[367852479,1750945859881,-246.66769021,0.00018421,2]
[367852480,1750945859891,-1000.84850324,0.00018421,2]
[367852481,1750945859900,-500.41457115,0.00018421,2]
[367852482,1750945859909,-1000.0,0.00018421,2]
[367852483,1750945859919,-976.26006367,0.00018421,2]
[367852484,1750945859929,-425.23766605,0.00018421,2]
[367852485,1750945859938,-1000.0,0.00018421,2]
[367852486,1750945859947,-1000.0,0.00018439,2]
[367852487,1750945859958,-151.0,0.000185,2]
[367852488,1750945859967,-1500.0,0.00018522,2]
[367852489,1750945859978,-5887.53402344,0.00018555,2]
[367852490,1750945859987,-505.22350188,0.00018621,2]
[367852491,1750945859997,-500.0,0.00018621,2]
[367852492,1750945860006,-1000.0,0.00018621,2]
[367852493,1750945860016,-151.0,0.00018629,2]
[367852494,1750945860025,-460.0,0.0001863,2]
[367852495,1750945860034,-460.0,0.0001863,2]
[367852496,1750945860044,-460.0,0.0001863,2]
[367852497,1750945860053,-483.8,0.0001863,2]
[367852498,1750945860063,-460.0,0.0001863,2]
[367852499,1750945860072,-460.0,0.0001863,2]
[367852500,1750945860082,-460.0,0.0001863,2]
[367852501,1750945860092,-460.0,0.0001863,2]
[367852502,1750945860103,-460.0,0.0001863,2]
[367852503,1750945860113,-460.0,0.0001863,2]
[367852504,1750945860123,-496.7,0.0001863,2]
[367852505,1750945860132,-460.0,0.0001863,2]
[367852506,1750945860142,-460.0,0.0001863,2]
[367852507,1750945860152,-460.0,0.0001863,2]
[367852508,1750945860162,-460.0,0.0001863,2]
[367852509,1750945860171,-460.0,0.0001863,2]
[367852510,1750945860180,-460.0,0.0001863,2]
[367852511,1750945860190,-460.0,0.0001863,2]
[367852512,1750945860199,-460.0,0.0001863,2]
[367852513,1750945860209,-218.64055989,0.0001863,2]
[367852514,1750945860219,-460.0,0.0001863,2]
[367852515,1750945860228,-260.35865612,0.0001863,2]
[367852516,1750945860237,-706.05,0.0001863,2]
[367852517,1750945860246,-460.0,0.0001863,2]
[367852518,1750945860255,-460.0,0.0001863,2]
[367852519,1750945860265,-460.0,0.0001863,2]
[367852520,1750945860274,-460.0,0.0001863,2]
[367852521,1750945860284,-1012.6,0.0001863,2]
[367852522,1750945860293,-460.0,0.0001863,2]
[367852523,1750945860306,-460.0,0.0001863,2]
[367852524,1750945860316,-460.0,0.0001863,2]
[367852525,1750945860327,-460.0,0.0001863,2]
[367852526,1750945860337,-460.0,0.0001863,2]
[367852527,1750945860348,-460.0,0.0001863,2]
[367852528,1750945860357,-460.0,0.0001863,2]
[367852529,1750945860366,-460.0,0.0001863,2]
[367852530,1750945860375,-460.0,0.0001863,2]
[367852531,1750945860385,-460.0,0.0001863,2]
[367852532,1750945860395,-460.0,0.0001863,2]
[367852533,1750945860404,-460.0,0.0001863,2]
[367852534,1750945860414,-460.0,0.0001863,2]
[367852535,1750945860423,-460.0,0.0001863,2]
[367852536,1750945860432,-460.0,0.0001863,2]
[367852537,1750945860442,-460.0,0.0001863,2]
[367852538,1750945860452,-460.0,0.0001863,2]
[367852539,1750945860462,-625.29,0.0001863,2]
[367852540,1750945860472,-460.0,0.0001863,2]
[367852541,1750945860482,-460.0,0.0001863,2]
[367852542,1750945860491,-463.07,0.0001863,2]
[367852543,1750945860502,-533.16,0.0001863,2]
[367852544,1750945860511,-460.0,0.0001863,2]
[367852545,1750945860522,-1543.99,0.0001863,2]
[367852546,1750945860532,-460.0,0.0001863,2]
[367852547,1750945860541,-460.0,0.0001863,2]
[367852548,1750945860552,-2101.76,0.0001863,2]
[367852549,1750945860562,-460.0,0.0001863,2]
[367852550,1750945860572,-489.27,0.0001863,2]
[367852551,1750945860582,-1224.13,0.0001863,2]
[367852552,1750945860592,-502.33,0.0001863,2]
[367852553,1750945860602,-460.0,0.0001863,2]
[367852554,1750945860611,-460.0,0.0001863,2]
[367852555,1750945860621,-610.36,0.0001863,2]
[367852556,1750945860630,-460.0,0.0001863,2]
[367852557,1750945860639,-460.0,0.0001863,2]
[367852558,1750945860649,-460.0,0.0001863,2]
[367852559,1750945860659,-479.77,0.0001863,2]
[367852560,1750945860669,-585.64,0.0001863,2]
[367852561,1750945860678,-2347.55,0.0001863,2]
[367852562,1750945860687,-460.0,0.0001863,2]
[367852563,1750945860697,-517.55,0.0001863,2]
[367852564,1750945860707,-1417.04,0.0001863,2]
[367852565,1750945860717,-460.0,0.0001863,2]
[367852566,1750945860726,-460.0,0.0001863,2]
[367852567,1750945860736,-661.16,0.0001863,2]
[367852568,1750945860746,-4377.88,0.0001863,2]
[367852569,1750945860756,-519.95,0.0001863,2]
[367852570,1750945860767,-2947.08,0.0001863,2]
[367852571,1750945860776,-460.0,0.0001863,2]
[367852572,1750945860788,-460.0,0.0001863,2]
[367852573,1750945860798,-1094.21,0.0001863,2]
[367852574,1750945860807,-460.0,0.0001863,2]
[367852575,1750945860817,-460.0,0.0001863,2]
[367852576,1750945860826,-460.0,0.0001863,2]
[367852577,1750945860836,-460.0,0.0001863,2]
[367852578,1750945860846,-460.0,0.0001863,2]
[367852579,1750945860855,-589.06,0.0001863,2]
[367852580,1750945860865,-641.74,0.0001863,2]
[367852581,1750945860875,-1239.94,0.0001863,2]
[367852582,1750945860885,-460.0,0.0001863,2]
[367852583,1750945860895,-556.83,0.0001863,2]
[367852584,1750945860905,-460.0,0.0001863,2]
[367852585,1750945860914,-466.95,0.0001863,2]
[367852586,1750945860924,-1347.46,0.0001863,2]
[367852587,1750945860934,-3717.3,0.0001863,2]
[367852588,1750945860944,-488.41,0.0001863,2]
[367852589,1750945860953,-460.0,0.0001863,2]
[367852590,1750945860963,-460.0,0.0001863,2]
[367852591,1750945860973,-1396.1,0.0001863,2]
[367852592,1750945860982,-460.0,0.0001863,2]
[367852593,1750945860991,-460.0,0.0001863,2]
[367852594,1750945861001,-460.0,0.0001863,2]
[367852595,1750945861011,-581.16,0.0001863,2]
[367852596,1750945861020,-151.0,0.0001863,2]
[367852597,1750945861030,-204.51327056,0.0001863,2]
[367852598,1750945861040,-1606.11,0.0001863,2]
[367852599,1750945861049,-781.78,0.0001863,2]
[367852600,1750945861059,-460.0,0.0001863,2]
[367852601,1750945861068,-1615.99,0.0001863,2]
[367852602,1750945861078,-460.0,0.0001863,2]
[367852603,1750945861087,-654.98,0.0001863,2]
[367852604,1750945861097,-777.89,0.0001863,2]
[367852605,1750945861107,-460.0,0.0001863,2]
[367852606,1750945861117,-1601.04,0.0001863,2]
[367852607,1750945861126,-541.1,0.0001863,2]
[367852608,1750945861135,-947.87,0.0001863,2]
[367852609,1750945861145,-460.0,0.0001863,2]
[367852610,1750945861154,-506.98,0.0001863,2]
[367852611,1750945861163,-460.0,0.0001863,2]
[367852612,1750945861171,-151.0,0.0001863,2]
[367852613,1750945861178,-460.0,0.0001863,2]
[367852614,1750945861187,-551.12,0.0001863,2]
[367852615,1750945861196,-151.0,0.0001863,2]
[367852616,1750945861203,-460.0,0.0001863,2]
[367852617,1750945861211,-460.0,0.0001863,2]
[367852618,1750945861220,-460.0,0.0001863,2]
[367852619,1750945861230,-460.0,0.0001863,2]
[367852620,1750945861239,-2153.56,0.0001863,2]
[367852621,1750945861249,-1103.1,0.0001863,2]
[367852622,1750945861258,-460.0,0.0001863,2]
[367852623,1750945861268,-500.0,0.00018673,2]
[367852624,1750945861277,-1000.0,0.00018691,2]
[367852625,1750945861287,-502.36847634,0.00018691,2]
[367852626,1750945861297,-151.0,0.000188,2]
[367852627,1750945861306,-5887.53402344,0.00018831,2]
[367852628,1750945861316,-2000.0,0.00018852,2]
[367852629,1750945861326,-500.0,0.00018852,2]
[367852630,1750945861336,-1126.51811168,0.000189,2]
[367852631,1750945861345,-460.0,0.00018904,2]
[367852632,1750945861357,-460.0,0.00018904,2]
[367852633,1750945861366,-483.8,0.00018904,2]
[367852634,1750945861376,-460.0,0.00018904,2]
[367852635,1750945861385,-460.0,0.00018904,2]
[367852636,1750945861394,-460.0,0.00018904,2]
[367852637,1750945861403,-460.0,0.00018904,2]
[367852638,1750945861413,-460.0,0.00018904,2]
[367852639,1750945861423,-460.0,0.00018904,2]
[367852640,1750945861432,-496.7,0.00018904,2]
[367852641,1750945861442,-460.0,0.00018904,2]
[367852642,1750945861452,-460.0,0.00018904,2]
[367852643,1750945861462,-460.0,0.00018904,2]
[367852644,1750945861472,-460.0,0.00018904,2]
[367852645,1750945861482,-460.0,0.00018904,2]
[367852646,1750945861491,-460.0,0.00018904,2]
[367852647,1750945861501,-544.59286136,0.00018904,2]
[367852648,1750945861510,-460.0,0.00018904,2]
[367852649,1750945861520,-460.0,0.00018904,2]
[367852650,1750945861530,-706.05,0.00018904,2]
[367852651,1750945861539,-460.0,0.00018904,2]
[367852652,1750945861549,-460.0,0.00018904,2]
[367852653,1750945861562,-460.0,0.00018904,2]
[367852654,1750945861574,-460.0,0.00018904,2]
[367852655,1750945861584,-1012.6,0.00018904,2]
[367852656,1750945861594,-582.141452,0.00018904,2]
[367852657,1750945861606,-460.0,0.00018904,2]
[367852658,1750945861616,-460.0,0.00018904,2]
[367852659,1750945861625,-460.0,0.00018904,2]
[367852660,1750945861635,-460.0,0.00018904,2]
[367852661,1750945861644,-460.0,0.00018904,2]
[367852662,1750945861654,-566.33532962,0.00018904,2]
[367852663,1750945861664,-460.0,0.00018904,2]
[367852664,1750945861674,-460.0,0.00018904,2]
[367852665,1750945861683,-460.0,0.00018904,2]
[367852666,1750945861693,-460.0,0.00018904,2]
[367852667,1750945861703,-460.0,0.00018904,2]
[367852668,1750945861713,-460.0,0.00018904,2]
[367852669,1750945861722,-460.0,0.00018904,2]
[367852670,1750945861732,-460.0,0.00018904,2]
[367852671,1750945861741,-460.0,0.00018904,2]
[367852672,1750945861751,-625.29,0.00018904,2]
[367852673,1750945861762,-193.37032881,0.00018904,2]
[367852674,1750945861773,-460.0,0.00018904,2]
[367852675,1750945861782,-463.07,0.00018904,2]
[367852676,1750945861794,-533.16,0.00018904,2]
[367852677,1750945861911,-460.0,0.00018904,2]
[367852678,1750945861922,-1543.99,0.00018904,2]
[367852679,1750945861932,-460.0,0.00018904,2]
[367852680,1750945861944,-460.0,0.00018904,2]
[367852681,1750945861953,-2101.76,0.00018904,2]
[367852682,1750945861963,-460.0,0.00018904,2]
[367852683,1750945861978,-489.27,0.00018904,2]
[367852684,1750945861988,-1224.13,0.00018904,2]
[367852685,1750945861999,-502.33,0.00018904,2]
[367852686,1750945862011,-460.0,0.00018904,2]
[367852687,1750945862021,-460.0,0.00018904,2]
[367852688,1750945862034,-610.36,0.00018904,2]
[367852689,1750945862044,-460.0,0.00018904,2]
[367852690,1750945862053,-460.0,0.00018904,2]
[367852691,1750945862064,-460.0,0.00018904,2]
[367852692,1750945862074,-479.77,0.00018904,2]
[367852693,1750945862084,-585.64,0.00018904,2]
[367852694,1750945862099,-2347.55,0.00018904,2]
[367852695,1750945862110,-518.02358399,0.00018904,2]
[367852696,1750945862120,-517.55,0.00018904,2]
[367852697,1750945862130,-1417.04,0.00018904,2]
[367852698,1750945862139,-460.0,0.00018904,2]
[367852699,1750945862148,-460.0,0.00018904,2]
[367852700,1750945862158,-661.16,0.00018904,2]
[367852701,1750945862167,-4377.88,0.00018904,2]
[367852702,1750945862177,-519.95,0.00018904,2]
[367852703,1750945862187,-2947.08,0.00018904,2]
[367852704,1750945862196,-460.0,0.00018904,2]
[367852705,1750945862206,-460.0,0.00018904,2]
[367852706,1750945862216,-1094.21,0.00018904,2]
[367852707,1750945862226,-460.0,0.00018904,2]
[367852708,1750945862236,-460.0,0.00018904,2]
[367852709,1750945862245,-460.0,0.00018904,2]
[367852710,1750945862254,-460.0,0.00018904,2]
[367852711,1750945862264,-460.0,0.00018904,2]
[367852712,1750945862273,-589.06,0.00018904,2]
[367852713,1750945862283,-641.74,0.00018904,2]
[367852714,1750945862293,-1239.94,0.00018904,2]
[367852715,1750945862302,-460.0,0.00018904,2]
[367852716,1750945862313,-556.83,0.00018904,2]
[367852717,1750945862322,-460.0,0.00018904,2]
[367852718,1750945862332,-466.95,0.00018904,2]
[367852719,1750945862342,-1347.46,0.00018904,2]
[367852720,1750945862353,-3717.3,0.00018904,2]
[367852721,1750945862363,-488.41,0.00018904,2]
[367852722,1750945862373,-460.0,0.00018904,2]
[367852723,1750945862382,-460.0,0.00018904,2]
[367852724,1750945862391,-1396.1,0.00018904,2]
[367852725,1750945862400,-460.0,0.00018904,2]
[367852726,1750945862410,-460.0,0.00018904,2]
[367852727,1750945862419,-460.0,0.00018904,2]
[367852728,1750945862429,-581.16,0.00018904,2]
[367852729,1750945862438,-1606.11,0.00018904,2]
[367852730,1750945862448,-781.78,0.00018904,2]
[367852731,1750945862458,-460.0,0.00018904,2]
[367852732,1750945862467,-1615.99,0.00018904,2]
[367852733,1750945862476,-460.0,0.00018904,2]
[367852734,1750945862486,-654.98,0.00018904,2]
[367852735,1750945862495,-777.89,0.00018904,2]
[367852736,1750945862505,-460.0,0.00018904,2]
[367852737,1750945862515,-1601.04,0.00018904,2]
[367852738,1750945862524,-541.1,0.00018904,2]
[367852739,1750945862533,-947.87,0.00018904,2]
[367852740,1750945862543,-596.94117999,0.00018904,2]
[367852741,1750945862552,-506.98,0.00018904,2]
[367852742,1750945862562,-460.0,0.00018904,2]
[367852743,1750945862571,-460.0,0.00018904,2]
[367852744,1750945862580,-551.12,0.00018904,2]
[367852745,1750945862590,-460.0,0.00018904,2]
[367852746,1750945862600,-460.0,0.00018904,2]
[367852747,1750945862610,-460.0,0.00018904,2]
[367852748,1750945862619,-2153.56,0.00018904,2]
[367852749,1750945862629,-1103.1,0.00018904,2]
[367852750,1750945862639,-460.0,0.00018904,2]
[367852751,1750945862649,-1500.0,0.00018968,2]
[367852752,1750945862659,-1004.53964016,0.00018968,2]
[367852753,1750945862668,-1500.0,0.00018968,2]
[367852754,1750945862678,-580.8694489,0.00018968,2]
[367852755,1750945862688,-500.0,0.0001907,2]
[367852756,1750945862697,-151.0,0.000191,2]
[367852757,1750945862707,-5887.53402344,0.00019107,2]
[367852758,1750945862716,-798.58513118,0.00019168,2]
[367852759,1750945862725,-460.0,0.00019178,2]
[367852760,1750945862734,-460.0,0.00019178,2]
[367852761,1750945862744,-483.8,0.00019178,2]
[367852762,1750945862753,-387.92861744,0.00019178,2]
[367852763,1750945862764,-460.0,0.00019178,2]
[367852764,1750945862773,-460.0,0.00019178,2]
[367852765,1750945862783,-460.0,0.00019178,2]
[367852766,1750945862793,-460.0,0.00019178,2]
[367852767,1750945862803,-460.0,0.00019178,2]
[367852768,1750945862812,-496.7,0.00019178,2]
[367852769,1750945862821,-460.0,0.00019178,2]
[367852770,1750945862830,-460.0,0.00019178,2]
[367852771,1750945862840,-460.0,0.00019178,2]
[367852772,1750945862850,-460.0,0.00019178,2]
[367852773,1750945862859,-460.0,0.00019178,2]
[367852774,1750945862869,-460.0,0.00019178,2]
[367852775,1750945862878,-460.0,0.00019178,2]
[367852776,1750945862887,-460.0,0.00019178,2]
[367852777,1750945862897,-706.05,0.00019178,2]
[367852778,1750945862907,-460.0,0.00019178,2]
[367852779,1750945862916,-460.0,0.00019178,2]
[367852780,1750945862926,-460.0,0.00019178,2]
[367852781,1750945862935,-460.0,0.00019178,2]
[367852782,1750945862944,-1012.6,0.00019178,2]
[367852783,1750945862952,-460.0,0.00019178,2]
[367852784,1750945862962,-460.0,0.00019178,2]
[367852785,1750945862972,-460.0,0.00019178,2]
[367852786,1750945862981,-460.0,0.00019178,2]
[367852787,1750945862991,-460.0,0.00019178,2]
[367852788,1750945863000,-460.0,0.00019178,2]
[367852789,1750945863010,-460.0,0.00019178,2]
[367852790,1750945863018,-460.0,0.00019178,2]
[367852791,1750945863028,-460.0,0.00019178,2]
[367852792,1750945863037,-460.0,0.00019178,2]
[367852793,1750945863047,-460.0,0.00019178,2]
[367852794,1750945863056,-460.0,0.00019178,2]
[367852795,1750945863066,-625.29,0.00019178,2]
[367852796,1750945863076,-460.0,0.00019178,2]
[367852797,1750945863085,-463.07,0.00019178,2]
[367852798,1750945863095,-533.16,0.00019178,2]
[367852799,1750945863106,-460.0,0.00019178,2]
[367852800,1750945863116,-1543.99,0.00019178,2]
[367852801,1750945863126,-460.0,0.00019178,2]
[367852802,1750945863135,-460.0,0.00019178,2]
[367852803,1750945863144,-2101.76,0.00019178,2]
[367852804,1750945863155,-460.0,0.00019178,2]
[367852805,1750945863165,-489.27,0.00019178,2]
[367852806,1750945863174,-1224.13,0.00019178,2]
[367852807,1750945863184,-502.33,0.00019178,2]
[367852808,1750945863193,-460.0,0.00019178,2]
[367852809,1750945863202,-460.0,0.00019178,2]
[367852810,1750945863212,-610.36,0.00019178,2]
[367852811,1750945863222,-169.97346394,0.00019178,2]
[367852812,1750945863231,-460.0,0.00019178,2]
[367852813,1750945863241,-460.0,0.00019178,2]
[367852814,1750945863250,-479.77,0.00019178,2]
[367852815,1750945863259,-585.64,0.00019178,2]
[367852816,1750945863269,-2347.55,0.00019178,2]
[367852817,1750945863278,-517.55,0.00019178,2]
[367852818,1750945863287,-1417.04,0.00019178,2]
[367852819,1750945863297,-460.0,0.00019178,2]
[367852820,1750945863306,-460.0,0.00019178,2]
[367852821,1750945863316,-661.16,0.00019178,2]
[367852822,1750945863325,-4377.88,0.00019178,2]
[367852823,1750945863335,-519.95,0.00019178,2]
[367852824,1750945863345,-2947.08,0.00019178,2]
[367852825,1750945863356,-318.59812789,0.00019178,2]
[367852826,1750945863365,-460.0,0.00019178,2]
[367852827,1750945863375,-1094.21,0.00019178,2]
[367852828,1750945863385,-460.0,0.00019178,2]
[367852829,1750945863394,-460.0,0.00019178,2]
[367852830,1750945863404,-460.0,0.00019178,2]
[367852831,1750945863413,-460.0,0.00019178,2]
[367852832,1750945863422,-460.0,0.00019178,2]
[367852833,1750945863432,-589.06,0.00019178,2]
[367852834,1750945863442,-641.74,0.00019178,2]
[367852835,1750945863452,-1239.94,0.00019178,2]
[367852836,1750945863463,-460.0,0.00019178,2]
[367852837,1750945863474,-556.83,0.00019178,2]
[367852838,1750945863484,-460.0,0.00019178,2]
[367852839,1750945863495,-466.95,0.00019178,2]
[367852840,1750945863505,-1347.46,0.00019178,2]
[367852841,1750945863515,-3717.3,0.00019178,2]
[367852842,1750945863525,-488.41,0.00019178,2]
[367852843,1750945863534,-460.0,0.00019178,2]
[367852844,1750945863544,-1396.1,0.00019178,2]
[367852845,1750945863555,-460.0,0.00019178,2]
[367852846,1750945863565,-460.0,0.00019178,2]
[367852847,1750945863575,-460.0,0.00019178,2]
[367852848,1750945863584,-581.16,0.00019178,2]
[367852849,1750945863594,-151.0,0.00019178,2]
[367852850,1750945863606,-1606.11,0.00019178,2]
[367852851,1750945863616,-781.78,0.00019178,2]
[367852852,1750945863627,-460.0,0.00019178,2]
[367852853,1750945863637,-1615.99,0.00019178,2]
[367852854,1750945863646,-460.0,0.00019178,2]
[367852855,1750945863656,-654.98,0.00019178,2]
[367852856,1750945863666,-777.89,0.00019178,2]
[367852857,1750945863676,-460.0,0.00019178,2]
[367852858,1750945863686,-1601.04,0.00019178,2]
[367852859,1750945863696,-541.1,0.00019178,2]
[367852860,1750945863706,-947.87,0.00019178,2]
[367852861,1750945863716,-506.98,0.00019178,2]
[367852862,1750945863828,-460.0,0.00019178,2]
[367852863,1750945863839,-151.0,0.00019178,2]
[367852864,1750945863848,-460.0,0.00019178,2]
[367852865,1750945863858,-551.12,0.00019178,2]
[367852866,1750945863868,-151.0,0.00019178,2]
[367852867,1750945863879,-460.0,0.00019178,2]
[367852868,1750945863888,-460.0,0.00019178,2]
[367852869,1750945863898,-460.0,0.00019178,2]
[367852870,1750945863908,-2153.56,0.00019178,2]
[367852871,1750945863918,-1103.1,0.00019178,2]
[367852872,1750945863928,-460.0,0.00019178,2]
[367852873,1750945863937,-517.953059,0.00019178,2]
[367852874,1750945863947,-29022.9130628,0.00019178,2]
[367852875,1750945863957,-1000.0,0.00019221,2]
[367852876,1750945863966,-1502.78026123,0.00019239,2]
[367852877,1750945863976,-235.32000001,0.000193,4]
[367852878,1750945863985,-151.0,0.00019328,2]
[367852879,1750945863994,-151.0,0.00019329,2]
[367852880,1750945864004,-151.0,0.00019329,2]
[367852881,1750945864013,-151.0,0.00019329,2]
[367852882,1750945864023,-151.0,0.00019329,2]
[367852883,1750945864033,-265.142047,0.00019329,2]
[367852884,1750945864042,-265.142047,0.00019329,2]
[367852885,1750945864051,-151.0,0.00019329,2]
[367852886,1750945864060,-151.0,0.00019329,2]
[367852887,1750945864070,-151.0,0.00019329,2]
[367852888,1750945864079,-151.0,0.00019329,2]
[367852889,1750945864089,-54444.48669817,0.00019329,2]
[367852890,1750945864098,-5887.53402344,0.00019383,2]
[367852891,1750945864109,-2500.0,0.00019399,2]
[367852892,1750945864118,-160.0,0.000194,4]
[367852893,1750945864128,-160.0,0.000194,4]
[367852894,1750945864137,-460.0,0.00019452,2]
[367852895,1750945864147,-483.8,0.00019452,2]
[367852896,1750945864157,-460.0,0.00019452,2]
[367852897,1750945864166,-460.0,0.00019452,2]
[367852898,1750945864176,-460.0,0.00019452,2]
[367852899,1750945864186,-460.0,0.00019452,2]
[367852900,1750945864196,-460.0,0.00019452,2]
[367852901,1750945864206,-496.7,0.00019452,2]
[367852902,1750945864215,-460.0,0.00019452,2]
[367852903,1750945864225,-460.0,0.00019452,2]
[367852904,1750945864235,-460.0,0.00019452,2]
[367852905,1750945864244,-460.0,0.00019452,2]
[367852906,1750945864254,-460.0,0.00019452,2]
[367852907,1750945864264,-460.0,0.00019452,2]
[367852908,1750945864274,-460.0,0.00019452,2]
[367852909,1750945864283,-412.23269121,0.00019452,2]
[367852910,1750945864293,-706.05,0.00019452,2]
[367852911,1750945864302,-460.0,0.00019452,2]
[367852912,1750945864312,-451.41335088,0.00019452,2]
[367852913,1750945864322,-460.0,0.00019452,2]
[367852914,1750945864332,-460.0,0.00019452,2]
[367852915,1750945864342,-1012.6,0.00019452,2]
[367852916,1750945864353,-460.0,0.00019452,2]
[367852917,1750945864364,-460.0,0.00019452,2]
[367852918,1750945864374,-460.0,0.00019452,2]
[367852919,1750945864384,-460.0,0.00019452,2]
[367852920,1750945864393,-460.0,0.00019452,2]
[367852921,1750945864402,-460.0,0.00019452,2]
[367852922,1750945864412,-460.0,0.00019452,2]
[367852923,1750945864422,-460.0,0.00019452,2]
[367852924,1750945864431,-396.65,0.00019452,2]
[367852925,1750945864441,-460.0,0.00019452,2]
[367852926,1750945864451,-460.0,0.00019452,2]
[367852927,1750945864461,-460.0,0.00019452,2]
[367852928,1750945864471,-625.29,0.00019452,2]
[367852929,1750945864480,-460.0,0.00019452,2]
[367852930,1750945864489,-463.07,0.00019452,2]
[367852931,1750945864499,-533.16,0.00019452,2]
[367852932,1750945864508,-460.0,0.00019452,2]
[367852933,1750945864518,-1543.99,0.00019452,2]
[367852934,1750945864528,-460.0,0.00019452,2]
[367852935,1750945864538,-460.0,0.00019452,2]
[367852936,1750945864547,-2101.76,0.00019452,2]
[367852937,1750945864556,-460.0,0.00019452,2]
[367852938,1750945864566,-489.27,0.00019452,2]
[367852939,1750945864575,-1224.13,0.00019452,2]
[367852940,1750945864585,-502.33,0.00019452,2]
[367852941,1750945864595,-460.0,0.00019452,2]
[367852942,1750945864608,-460.0,0.00019452,2]
[367852943,1750945864618,-610.36,0.00019452,2]
[367852944,1750945864627,-460.0,0.00019452,2]
[367852945,1750945864637,-460.0,0.00019452,2]
[367852946,1750945864646,-479.77,0.00019452,2]
[367852947,1750945864656,-585.64,0.00019452,2]